bitfinex/quotes_BTCUSD_20250108
["timestamp","ask_amount","ask_price","bid_price","bid_amount"]
[1736318239300,0.00015313,95811.0,95764.0,0.1]
[1736318239301,0.208747,95810.0,95785.0,0.10427474]
[1736318239519,0.208746,95810.0,95786.0,0.208798]
[1736318239685,0.00015313,95811.0,95801.0,0.208766]
[1736318239880,0.00015313,95811.0,95802.0,0.10427474]
[1736318240059,0.00015313,95811.0,95803.0,0.01042747]
[1736318240267,0.00015313,95811.0,95804.0,0.10427474]
[1736318242125,0.00015313,95811.0,95805.0,0.11]
[1736318242329,0.00015313,95811.0,95806.0,0.10427474]
[1736318243056,0.00015313,95811.0,95807.0,0.208753]
[1736318243229,0.00015313,95811.0,95808.0,0.10427474]
[1736318243430,0.00015313,95811.0,95809.0,0.24005077]
[1736318243608,0.00015313,95811.0,95810.0,0.10427474]
[1736318245241,0.00015313,95811.0,95796.0,0.01050253]
[1736318245436,0.00015313,95811.0,95769.0,0.1]
[1736318245437,0.208746,95810.0,95772.0,0.208828]
[1736318245665,0.02219457,95809.0,95779.0,0.208814]
[1736318245877,0.00130466,95809.0,95780.0,0.10427474]
[1736318246079,0.208762,95803.0,95780.0,0.10427474]
[1736318246278,0.20889713,95811.0,95780.0,0.10427474]
[1736318246279,0.20889713,95811.0,95781.0,0.208809]
[1736318246503,0.208746,95810.0,95783.0,0.208805]
[1736318246702,0.208746,95810.0,95789.0,0.208791]
[1736318246906,0.00015313,95811.0,95791.0,0.208787]
[1736318247110,0.00015313,95811.0,95792.0,0.10427474]
[1736318247287,0.208759,95805.0,95792.0,0.10427474]
[1736318247658,0.208768,95800.0,95792.0,0.10427474]
[1736318247856,0.02089121,95805.0,95769.0,0.208834]
[1736318247982,0.208792,95789.0,95770.0,0.10427474]
[1736318248188,0.208807,95783.0,95770.0,0.10427474]
[1736318248391,0.208795,95788.0,95770.0,0.10427474]
[1736318248568,0.0758,95792.0,95770.0,0.10427474]
[1736318248773,0.0758,95792.0,95771.0,0.03131137]
[1736318249037,0.0758,95792.0,95772.0,0.31310374]
[1736318249466,0.0758,95792.0,95772.0,0.10427474]
[1736318249610,0.20879,95790.0,95772.0,0.10427474]
[1736318249976,0.284585,95792.0,95772.0,0.10427474]
[1736318250177,0.0758,95792.0,95773.0,0.03131127]
[1736318250378,0.0758,95792.0,95774.0,0.10427474]
[1736318250582,0.0459,95793.0,95781.0,0.208809]
[1736318250851,0.0459,95793.0,95782.0,0.10427474]
[1736318251056,0.208799,95786.0,95770.0,0.003]
[1736318251196,0.00130493,95785.0,95770.0,0.003]
[1736318251400,0.208826,95774.0,95770.0,0.003]
[1736318251599,0.0254674,95792.0,95770.0,0.003]
[1736318251600,0.208796,95788.0,95770.0,0.003]
[1736318251808,0.208822,95776.0,95755.0,0.208866]
[1736318252037,0.208822,95776.0,95756.0,0.10427474]
[1736318252651,0.20885,95763.0,95756.0,0.00051105]
[1736318252851,0.20884,95767.0,95756.0,0.00051105]
[1736318253142,0.075,95775.0,95757.0,0.10427474]
[1736318253353,0.075,95775.0,95758.0,0.208859]
[1736318253559,0.075,95775.0,95759.0,0.13564774]
[1736318254153,0.208824,95774.0,95759.0,0.10427474]
[1736318254592,0.075,95775.0,95759.0,0.10427474]
[1736318254759,0.208796,95788.0,95760.0,0.18834529]
[1736318254905,0.417592,95788.0,95761.0,0.31312574]
[1736318255114,0.208796,95788.0,95761.0,0.10427474]
[1736318255323,0.208796,95788.0,95762.0,0.44701511]
[1736318255523,0.417592,95788.0,95764.0,0.208846]
[1736318255728,0.208792,95789.0,95766.0,0.208841]
[1736318255936,0.208792,95789.0,95767.0,0.31311474]
[1736318256141,0.208792,95789.0,95767.0,0.10427474]
[1736318256346,0.0766,95790.0,95768.0,0.03424369]
[1736318256604,0.0459,95793.0,95776.0,0.208819]
[1736318256806,0.0459,95793.0,95778.0,0.208816]
[1736318257025,0.20876,95804.0,95780.0,0.208811]
[1736318257227,0.20876,95804.0,95781.0,0.13558331]
[1736318257448,0.41752,95804.0,95781.0,0.13558331]
[1736318257650,0.20876,95804.0,95781.0,0.10427474]
[1736318257770,0.208781,95795.0,95781.0,0.10427474]
[1736318257972,0.208761,95803.0,95781.0,0.10427474]
[1736318258172,0.208773,95798.0,95781.0,0.10427474]
[1736318258415,0.20879,95790.0,95781.0,0.10427474]
[1736318258995,0.41758,95790.0,95774.0,0.00645672]
[1736318259193,0.0787,95806.0,95770.0,0.00645672]
[1736318259402,0.208802,95785.0,95771.0,0.10427474]
[1736318259748,0.00130499,95784.0,95753.0,8.52e-05]
[1736318259887,0.00130508,95799.0,95757.0,0.10427474]
[1736318260278,0.208825,95774.0,95758.0,0.0104871]
[1736318260534,0.0761,95769.0,95753.0,8.52e-05]
[1736318260755,0.208857,95760.0,95753.0,8.52e-05]
[1736318261173,0.417714,95760.0,95753.0,8.52e-05]
[1736318261351,0.208857,95760.0,95753.0,8.52e-05]
[1736318261526,0.0761,95769.0,95756.0,0.10478579]
[1736318261729,0.208829,95772.0,95757.0,0.11476184]
[1736318261931,0.0481,95776.0,95758.0,0.208859]
[1736318262137,0.208822,95775.0,95759.0,0.10427474]
[1736318262342,0.208822,95775.0,95759.0,0.10907397]
[1736318262497,0.0481,95776.0,95759.0,0.10907397]
[1736318263554,0.0481,95776.0,95759.0,0.14157349]
[1736318263968,0.083,95783.0,95760.0,0.00645797]
[1736318264188,0.208797,95787.0,95761.0,0.10427474]
[1736318264387,0.208797,95787.0,95762.0,0.208851]
[1736318264604,0.208797,95787.0,95763.0,0.10427474]
[1736318264776,0.208797,95787.0,95765.0,0.208844]
[1736318264928,0.208797,95787.0,95767.0,0.20884]
[1736318265133,0.208797,95787.0,95768.0,0.10427474]
[1736318265431,0.208797,95787.0,95769.0,0.208835]
[1736318265683,0.208797,95787.0,95770.0,0.10906711]
[1736318266102,0.208831,95771.0,95770.0,0.00479237]
[1736318266534,0.0456,95794.0,95768.0,0.00645797]
[1736318266535,0.208818,95777.0,95768.0,0.00645797]
[1736318266698,0.208818,95777.0,95756.0,0.00051105]
[1736318266865,0.20882,95776.0,95757.0,0.10427474]
[1736318267076,0.208832,95771.0,95757.0,0.10906151]
[1736318267275,0.208822,95775.0,95758.0,0.03249857]
[1736318267482,0.208817,95778.0,95759.0,0.10427474]
[1736318267704,0.208834,95770.0,95759.0,0.10907682]
[1736318268286,0.208824,95774.0,95759.0,0.10907682]
[1736318268451,0.417604,95785.0,95759.0,0.10907682]
[1736318268672,0.0456,95794.0,95760.0,0.24070811]
[1736318268992,0.208811,95780.0,95761.0,0.10427474]
[1736318269119,0.208802,95785.0,95768.0,0.208836]
[1736318269332,0.208802,95785.0,95769.0,0.10427474]
[1736318269526,0.208802,95785.0,95769.0,0.10906867]
[1736318270586,0.208802,95785.0,95770.0,0.00645797]
[1736318270779,0.0456,95794.0,95771.0,0.10427474]
[1736318271001,0.0456,95794.0,95771.0,0.12062036]
[1736318271173,0.0456,95794.0,95772.0,0.00645797]
[1736318271374,0.0456,95794.0,95774.0,0.208824]
[1736318271577,0.208783,95793.0,95775.0,0.31309674]
[1736318271776,0.208783,95793.0,95776.0,0.03358994]
[1736318272116,0.208783,95793.0,95777.0,0.1090648]
[1736318272315,0.208787,95791.0,95777.0,0.00479006]
[1736318272526,0.208802,95785.0,95777.0,0.00479006]
[1736318272718,0.0456,95794.0,95758.0,0.208859]
[1736318272922,0.208812,95780.0,95760.0,0.208855]
[1736318273125,0.208812,95780.0,95761.0,0.10427474]
[1736318273300,0.208823,95775.0,95761.0,0.10902781]
[1736318273507,0.208812,95780.0,95762.0,0.21530866]
[1736318273701,0.208812,95780.0,95763.0,0.09927474]
[1736318274029,0.208812,95780.0,95763.0,0.10402685]
[1736318274224,0.208812,95780.0,95764.0,0.2538135]
[1736318274434,0.208803,95784.0,95766.0,0.208842]
[1736318274628,0.208842,95766.0,95765.0,0.00645766]
[1736318274829,0.208829,95772.0,95765.0,0.00645766]
[1736318275034,0.208829,95772.0,95763.0,0.001]
[1736318275255,0.208829,95772.0,95756.0,0.00051105]
[1736318275479,0.208829,95772.0,95764.0,0.00644842]
[1736318276031,0.41766,95772.0,95761.0,0.001]
[1736318276233,0.208823,95775.0,95762.0,0.00476459]
[1736318276461,0.208823,95775.0,95762.0,0.10903933]
[1736318277176,0.208815,95779.0,95762.0,0.10903933]
[1736318277381,0.208827,95773.0,95762.0,0.10903933]
[1736318277585,0.10427474,95793.0,95762.0,0.10903933]
[1736318277809,0.15383338,95792.0,95762.0,0.00476459]
[1736318278017,0.208838,95768.0,95756.0,0.00051105]
[1736318278220,0.208835,95769.0,95756.0,0.00051105]
[1736318278440,0.417672,95769.0,95756.0,0.00051105]
[1736318278652,0.0751,95768.0,95756.0,0.00051105]
[1736318279293,0.208854,95761.0,95756.0,0.00051105]
[1736318279498,0.208842,95766.0,95756.0,0.00051105]
[1736318279901,0.208837,95769.0,95756.0,0.00051105]
[1736318280322,0.208837,95769.0,95757.0,0.00476701]
[1736318281655,0.0751,95781.0,95758.0,0.10427474]
[1736318281826,0.208832,95771.0,95759.0,0.00476604]
[1736318282510,0.208806,95783.0,95760.0,0.10427474]
[1736318282677,0.208806,95783.0,95767.0,0.208839]
[1736318282877,0.208806,95783.0,95767.0,0.31311374]
[1736318283090,0.208797,95787.0,95769.0,0.208835]
[1736318283246,0.208797,95787.0,95770.0,0.10427474]
[1736318283441,0.28678,95795.0,95777.0,0.208818]
[1736318283646,0.078,95795.0,95778.0,0.00477974]
[1736318283932,0.208797,95787.0,95771.0,0.208829]
[1736318284139,0.417594,95787.0,95779.0,0.00477925]
[1736318284288,0.078,95795.0,95772.0,0.10427474]
[1736318284492,0.208808,95782.0,95772.0,0.10427474]
[1736318284690,0.20879,95790.0,95773.0,0.0047822]
[1736318284874,0.208803,95784.0,95772.0,0.10427474]
[1736318285072,0.20879,95790.0,95774.0,0.00478171]
[1736318285300,0.20879,95790.0,95775.0,0.208822]
[1736318285497,0.20879,95790.0,95775.0,0.21359583]
[1736318285817,0.078,95795.0,95775.0,0.21359583]
[1736318285818,0.208786,95792.0,95775.0,0.21359583]
[1736318286139,0.208786,95792.0,95775.0,0.42241783]
[1736318286320,0.208783,95793.0,95780.0,0.208809]
[1736318286682,0.208773,95798.0,95785.0,0.208799]
[1736318287132,0.208773,95798.0,95786.0,0.00476852]
[1736318287590,0.208773,95798.0,95782.0,0.208807]
[1736318287793,0.417546,95798.0,95782.0,0.31359279]
[1736318288011,0.208773,95798.0,95782.0,0.31359279]
[1736318288190,0.417546,95798.0,95783.0,0.00476997]
[1736318288574,0.417546,95798.0,95783.0,0.06275497]
[1736318288774,0.208785,95793.0,95783.0,0.06275497]
[1736318288993,0.208773,95798.0,95783.0,0.00476997]
[1736318289461,0.208784,95793.0,95783.0,0.00476997]
[1736318291371,0.208773,95798.0,95784.0,0.10427474]
[1736318291795,0.208773,95798.0,95785.0,0.00506267]
[1736318292022,0.208773,95798.0,95786.0,0.10427474]
[1736318292363,0.208773,95798.0,95787.0,0.00506171]
[1736318292565,0.208773,95798.0,95787.0,0.10933645]
[1736318292750,0.208768,95800.0,95788.0,0.10427474]
[1736318293161,0.208753,95807.0,95789.0,0.00506074]
[1736318293361,0.417507,95807.0,95790.0,0.10427474]
[1736318293576,0.417529,95802.0,95790.0,0.10427474]
[1736318293796,0.417529,95802.0,95791.0,0.00505978]
[1736318293997,0.208764,95802.0,95791.0,0.00505978]
[1736318294197,0.208759,95805.0,95791.0,0.12026797]
[1736318294467,0.208769,95800.0,95791.0,0.12026797]
[1736318294690,0.208769,95800.0,95791.0,0.10933452]
[1736318295090,0.208759,95805.0,95791.0,0.10933452]
[1736318295288,0.417518,95805.0,95791.0,0.10933452]
[1736318295791,0.417518,95805.0,95791.0,0.10427474]
[1736318295999,0.208759,95805.0,95792.0,0.01042747]
[1736318296232,0.0758706,95808.0,95793.0,0.10427474]
[1736318296410,0.0001706,95808.0,95798.0,0.12582795]
[1736318296581,0.0001706,95808.0,95805.0,0.208757]
[1736318296792,0.0001706,95808.0,95807.0,0.208753]
[1736318296985,0.0001706,95808.0,95807.0,0.31302774]
[1736318297187,0.0001706,95808.0,95807.0,0.31903386]
[1736318298188,0.2088366,95847.0,95807.0,0.14568086]
[1736318298409,0.2088366,95847.0,95830.0,0.208702]
[1736318298787,0.0001706,95847.0,95833.0,0.208696]
[1736318298944,0.0001706,95847.0,95831.0,0.13113947]
[1736318298945,0.0001706,95847.0,95834.0,0.10427474]
[1736318299165,0.0001706,95847.0,95834.0,0.11023201]
[1736318299399,0.0001706,95847.0,95841.0,0.417355]
[1736318299536,0.0001706,95847.0,95843.0,0.417348]
[1736318299718,0.00032381,95847.0,95845.0,0.20867]
[1736318300134,0.00032381,95847.0,95846.0,0.11022622]
[1736318300354,0.00032381,95847.0,95846.0,0.32670622]
[1736318300541,0.00032381,95847.0,95846.0,0.53098096]
[1736318300917,0.00032381,95847.0,95846.0,0.63098096]
[1736318301118,0.00032381,95847.0,95846.0,0.65398096]
[1736318301322,0.00032381,95847.0,95846.0,0.36450096]
[1736318301532,0.00032381,95847.0,95846.0,0.26022622]
[1736318301946,0.00032381,95847.0,95846.0,0.26922622]
[1736318302122,0.00032381,95847.0,95846.0,0.26022622]
[1736318302887,0.00032381,95847.0,95846.0,0.26322622]
[1736318303088,0.00032381,95847.0,95846.0,0.36750096]
[1736318303307,0.00032381,95847.0,95846.0,0.36450096]
[1736318303521,0.00032381,95847.0,95846.0,0.11022622]
[1736318303728,0.00032381,95847.0,95846.0,0.01995148]
[1736318303931,0.024781,95847.0,95846.0,0.01995148]
[1736318304131,0.00162807,95847.0,95846.0,0.014]
[1736318304332,0.00162807,95847.0,95846.0,0.005]
[1736318304546,0.00032381,95847.0,95846.0,0.005]
[1736318304784,0.00032381,95847.0,95846.0,0.006]
[1736318305023,0.00032381,95847.0,95820.0,0.18829393]
[1736318305285,0.00032381,95847.0,95829.0,0.208705]
[1736318305531,0.00032381,95847.0,95820.0,0.18829393]
[1736318305532,0.00032381,95847.0,95836.0,0.208688]
[1736318305785,0.00032381,95847.0,95837.0,0.10427474]
[1736318306022,0.00032381,95847.0,95837.0,0.10902517]
[1736318306263,0.00032381,95847.0,95846.0,0.003]
[1736318306499,0.00032381,95847.0,95846.0,0.11202083]
[1736318306739,0.00032381,95847.0,95846.0,0.10427474]
[1736318306977,0.00032381,95847.0,95846.0,0.10902083]
[1736318307674,0.00032381,95847.0,95838.0,0.01770583]
[1736318307909,0.00032381,95847.0,95839.0,0.10427474]
[1736318308161,0.00032381,95847.0,95846.0,0.208668]
[1736318308402,0.00032381,95847.0,95846.0,0.31294274]
[1736318310805,0.00032381,95847.0,95846.0,0.31594274]
[1736318311030,0.00032381,95847.0,95846.0,0.32394274]
[1736318311273,0.00032381,95847.0,95846.0,0.31294274]
[1736318311498,0.00032381,95847.0,95846.0,0.38734932]
[1736318312328,0.00032381,95847.0,95846.0,0.37934932]
[1736318312798,0.00032381,95847.0,95846.0,0.38234932]
[1736318313047,0.00032381,95847.0,95846.0,0.53234932]
[1736318313286,0.00032381,95847.0,95846.0,0.52934932]
[1736318313559,0.00032381,95847.0,95846.0,0.53234932]
[1736318313820,0.00032381,95847.0,95846.0,0.11527474]
[1736318314062,0.00032381,95847.0,95846.0,0.10427474]
[1736318314302,0.00032381,95847.0,95846.0,0.004]
[1736318314534,0.12582381,95847.0,95846.0,0.013]
[1736318314780,0.12582381,95847.0,95846.0,0.004]
[1736318315240,0.12582381,95847.0,95846.0,0.012]
[1736318315485,0.12582381,95847.0,95846.0,0.004]
[1736318316437,0.12582381,95847.0,95814.0,0.208737]
[1736318316687,0.208682,95840.0,95815.0,0.10427474]
[1736318316966,0.208708,95828.0,95815.0,0.10427474]
[1736318317215,0.417416,95828.0,95815.0,0.10427474]
[1736318317413,0.208698,95833.0,95797.0,0.01058329]
[1736318317414,0.208721,95822.0,95797.0,0.01058329]
[1736318317660,0.208721,95822.0,95798.0,0.31304674]
[1736318318500,0.208734,95816.0,95798.0,0.10427474]
[1736318318736,0.0774,95815.0,95798.0,0.10427474]
[1736318319610,0.208737,95814.0,95798.0,0.10427474]
[1736318319799,0.07753855,95815.0,95798.0,0.10427474]
[1736318320497,0.208737,95814.0,95798.0,0.10427474]
[1736318320986,0.07753855,95815.0,95791.0,0.0001046]
[1736318321191,0.28627455,95815.0,95799.0,0.10427474]
[1736318321759,0.28627455,95815.0,95799.0,0.10435994]
[1736318322351,0.07753855,95815.0,95799.0,0.10435994]
[1736318322775,0.208737,95814.0,95799.0,0.10435994]
[1736318323503,0.07753855,95815.0,95799.0,0.10435994]
[1736318324772,0.208737,95814.0,95799.0,0.10435994]
[1736318324982,0.208737,95814.0,95799.0,8.52e-05]
[1736318325189,0.208757,95806.0,95799.0,8.52e-05]
[1736318325805,0.28627555,95815.0,95799.0,8.52e-05]
[1736318326213,0.208737,95814.0,95799.0,0.10435994]
[1736318327395,0.208742,95812.0,95799.0,0.10435994]
[1736318327570,0.208737,95814.0,95799.0,0.10435994]
[1736318328199,0.417475,95814.0,95799.0,0.10435994]
[1736318328413,0.0013046,95813.0,95799.0,8.52e-05]
[1736318328668,0.208765,95802.0,95799.0,8.52e-05]
[1736318329044,0.208768,95800.0,95799.0,8.52e-05]
[1736318330737,0.208768,95800.0,95791.0,0.0001046]
[1736318330738,0.257485,95792.0,95791.0,0.0001046]
[1736318330935,0.257485,95792.0,95757.0,0.01040085]
[1736318330936,0.208837,95769.0,95753.0,8.52e-05]
[1736318331098,0.00130526,95768.0,95753.0,8.52e-05]
[1736318331295,0.20884,95767.0,95753.0,8.52e-05]
[1736318331505,0.10427474,95791.0,95754.0,0.10427474]
[1736318331704,0.20882,95777.0,95755.0,0.01043599]
[1736318331907,0.20882,95777.0,95756.0,0.10427474]
[1736318332109,0.208804,95784.0,95757.0,0.208862]
[1736318332315,0.208795,95788.0,95761.0,0.208853]
[1736318332521,0.208795,95788.0,95763.0,0.208848]
[1736318332731,0.0906,95792.0,95762.0,0.13668222]
[1736318332732,0.208787,95791.0,95765.0,0.208844]
[1736318332938,0.208787,95791.0,95766.0,0.10427474]
[1736318333153,0.0906,95792.0,95766.0,0.10427474]
[1736318333357,0.0906,95792.0,95774.0,0.208823]
[1736318333358,0.0487,95792.0,95774.0,0.208823]
[1736318333569,0.0487,95792.0,95775.0,0.10427474]
[1736318333775,0.208763,95803.0,95775.0,0.10427474]
[1736318333776,0.208763,95803.0,95782.0,0.208805]
[1736318333981,0.208756,95806.0,95783.0,0.10427474]
[1736318334184,0.0483,95808.0,95783.0,0.10427474]
[1736318334415,0.0828,95813.0,95792.0,0.208785]
[1736318334607,0.0828,95813.0,95793.0,0.10427474]
[1736318335111,0.0828,95813.0,95794.0,0.208781]
[1736318335289,0.0828,95813.0,95796.0,0.208776]
[1736318335544,0.0498,95825.0,95797.0,0.10427474]
[1736318335756,0.00015313,95813.0,95797.0,0.11517154]
[1736318335957,0.00015313,95813.0,95803.0,0.20876]
[1736318336255,0.00015313,95813.0,95804.0,0.10427474]
[1736318336866,0.00015313,95813.0,95805.0,0.208757]
[1736318337075,0.00015313,95813.0,95806.0,0.10427474]
[1736318337276,0.05408685,95827.0,95807.0,0.208753]
[1736318337483,0.208686,95838.0,95808.0,0.10427474]
[1736318337690,0.00130438,95837.0,95809.0,0.03135428]
[1736318337906,0.00130438,95837.0,95810.0,0.10427474]
[1736318338327,0.00130438,95837.0,95810.0,0.31301974]
[1736318338538,0.047,95840.0,95810.0,0.31301974]
[1736318338756,0.208705,95829.0,95811.0,0.05536421]
[1736318338962,0.208705,95829.0,95812.0,0.10427474]
[1736318339140,0.208694,95834.0,95812.0,0.10427474]
[1736318339393,0.208684,95839.0,95812.0,0.10427474]
[1736318339598,0.00130437,95838.0,95813.0,0.0368896]
[1736318339811,0.208711,95827.0,95814.0,0.10427474]
[1736318340627,0.208701,95831.0,95814.0,0.10427474]
[1736318340839,0.208685,95838.0,95814.0,0.10427474]
[1736318341055,0.208685,95838.0,95815.0,0.05217647]
[1736318341056,0.208698,95833.0,95815.0,0.05217647]
[1736318341278,0.208698,95833.0,95816.0,0.10427474]
[1736318341486,0.047,95840.0,95816.0,0.10427474]
[1736318341692,0.208709,95827.0,95816.0,0.10427474]
[1736318341897,0.208704,95830.0,95816.0,0.10427474]
[1736318342109,0.047,95840.0,95817.0,0.01042747]
[1736318342322,0.00130429,95839.0,95818.0,0.10427474]
[1736318342568,0.047,95840.0,95812.0,0.00104343]
[1736318342569,0.03303767,95840.0,95812.0,0.00104343]
[1736318342821,0.10557546,95839.0,95806.0,0.00051105]
[1736318343102,0.20874,95813.0,95806.0,0.00051105]
[1736318343356,0.208744,95811.0,95806.0,0.00051105]
[1736318343614,0.208732,95817.0,95806.0,0.00051105]
[1736318343971,0.208743,95812.0,95806.0,0.00051105]
[1736318344172,0.208746,95810.0,95806.0,0.00051105]
[1736318344380,0.0782,95811.0,95806.0,0.00051105]
[1736318344587,0.208743,95812.0,95806.0,0.00051105]
[1736318345047,0.417492,95810.0,95806.0,0.00051105]
[1736318345259,0.20875,95808.0,95806.0,0.00051105]
[1736318345469,0.00130072,95807.0,95806.0,0.00051105]
[1736318345881,0.208746,95810.0,95806.0,0.00051105]
[1736318346095,0.208725,95820.0,95806.0,0.00051105]
[1736318346301,0.0887,95826.0,95808.0,0.20875]
[1736318346302,0.0468,95826.0,95808.0,0.20875]
[1736318346508,0.00130072,95838.0,95809.0,0.13667187]
[1736318346970,0.208714,95825.0,95809.0,0.13667187]
[1736318347173,0.0771,95839.0,95809.0,0.13667187]
[1736318347381,0.208708,95828.0,95809.0,0.10531829]
[1736318348223,0.208719,95823.0,95809.0,0.10531829]
[1736318349246,0.208685,95838.0,95809.0,0.10531829]
[1736318349471,0.208685,95838.0,95810.0,0.03251207]
[1736318349678,0.208697,95833.0,95811.0,0.31406217]
[1736318350102,0.208687,95837.0,95811.0,0.31406217]
[1736318350315,0.208687,95837.0,95806.0,0.00051105]
[1736318350316,0.10427474,95837.0,95806.0,0.00051105]
[1736318350486,0.20872,95822.0,95807.0,0.10427474]
[1736318350691,0.208732,95817.0,95807.0,0.10427474]
[1736318351128,0.208732,95817.0,95807.0,0.09617474]
[1736318351712,0.208727,95819.0,95807.0,0.09617474]
[1736318351713,0.208727,95819.0,95808.0,0.00966858]
[1736318351958,0.208713,95826.0,95808.0,0.0107122]
[1736318352167,0.208715,95824.0,95809.0,0.00104361]
[1736318352791,0.41730542,95824.0,95809.0,0.00104361]
[1736318353198,0.208686,95838.0,95810.0,0.10531836]
[1736318353401,0.208686,95838.0,95811.0,0.0324252]
[1736318353625,0.208708,95828.0,95812.0,0.10531829]
[1736318354275,0.208719,95823.0,95812.0,0.10531829]
[1736318355140,0.1,95844.0,95806.0,0.00051105]
[1736318355378,0.12796546,95838.0,95807.0,0.10427474]
[1736318355898,0.20873,95818.0,95807.0,0.10427474]
[1736318356540,0.12666474,95838.0,95807.0,0.10427474]
[1736318356781,0.2087,95832.0,95807.0,0.10427474]
[1736318357057,0.208725,95820.0,95807.0,0.10427474]
[1736318357233,0.208715,95825.0,95807.0,0.10427474]
[1736318357433,0.208702,95830.0,95808.0,0.00104362]
[1736318357640,0.208702,95830.0,95809.0,0.10427474]
[1736318357641,0.208714,95825.0,95809.0,0.10427474]
[1736318357983,0.208714,95825.0,95810.0,0.00104356]
[1736318358164,0.208714,95825.0,95811.0,0.1053183]
[1736318358799,0.208687,95837.0,95811.0,0.00104356]
[1736318359036,0.208687,95837.0,95806.0,0.00051105]
[1736318359037,0.208738,95814.0,95806.0,0.00051105]
[1736318359771,0.208728,95819.0,95807.0,0.10427474]
[1736318359968,0.0541272,95836.0,95807.0,0.10427474]
[1736318359969,0.0771,95839.0,95808.0,0.20979366]
[1736318360345,0.208703,95830.0,95809.0,0.15660899]
[1736318360490,0.208687,95837.0,95816.0,0.208731]
[1736318360698,0.208703,95830.0,95817.0,0.10427474]
[1736318361060,0.417406,95830.0,95817.0,0.10427474]
[1736318361263,0.208717,95824.0,95817.0,0.10427474]
[1736318361713,0.208705,95829.0,95817.0,0.10427474]
[1736318362372,0.0771,95839.0,95818.0,0.0064205]
[1736318362585,0.00130072,95838.0,95819.0,0.03836412]
[1736318362753,0.208703,95830.0,95819.0,0.03836412]
[1736318363121,0.208703,95830.0,95820.0,0.0064205]
[1736318363748,0.208703,95830.0,95821.0,0.0064205]
[1736318363950,0.208692,95835.0,95821.0,0.0064205]
[1736318364125,0.208707,95828.0,95821.0,0.0064205]
[1736318364353,0.208707,95828.0,95822.0,0.0064205]
[1736318364643,0.208707,95828.0,95823.0,0.0064205]
[1736318365195,0.417416,95828.0,95818.0,0.10427474]
[1736318365398,0.00130072,95827.0,95798.0,0.208772]
[1736318365599,0.208736,95815.0,95803.0,0.2793663]
[1736318366205,0.208736,95815.0,95807.0,0.00643006]
[1736318366650,0.208736,95815.0,95808.0,0.00643006]
[1736318367086,0.417472,95815.0,95809.0,0.00643006]
[1736318367493,0.208736,95815.0,95806.0,0.00151105]
[1736318367698,0.208736,95815.0,95806.0,0.00051105]
[1736318368738,0.208727,95819.0,95806.0,0.00051105]
[1736318368889,0.417454,95819.0,95806.0,0.00051105]
[1736318369097,0.208727,95819.0,95806.0,0.00051105]
[1736318369713,0.208738,95814.0,95806.0,0.00051105]
[1736318369923,0.00130072,95813.0,95806.0,0.00051105]
[1736318370135,0.20875,95809.0,95806.0,0.00051105]
[1736318370362,0.208753,95807.0,95806.0,0.00051105]
[1736318370580,0.208794,95788.0,95787.0,0.2793663]
[1736318370820,0.67911324,95788.0,95787.0,0.27951943]
[1736318371027,0.84952991,95788.0,95787.0,0.00015313]
[1736318371231,0.80131324,95788.0,95787.0,0.00015313]
[1736318371506,1.34869424,95788.0,95787.0,0.00015313]
[1736318371741,1.51102371,95788.0,95787.0,0.00015313]
[1736318372163,0.208829,95772.0,95771.0,8.53e-05]
[1736318372364,1.46945184,95772.0,95771.0,0.00023833]
[1736318372561,0.208868,95754.0,95736.0,0.2793663]
[1736318372775,0.208868,95754.0,95731.0,8.52e-05]
[1736318373008,0.383768,95754.0,95731.0,8.52e-05]
[1736318373241,0.52762059,95754.0,95731.0,8.52e-05]
[1736318373484,0.70723032,95754.0,95731.0,8.52e-05]
[1736318373928,1.15379132,95754.0,95731.0,8.52e-05]
[1736318374169,1.18675332,95754.0,95731.0,8.52e-05]
[1736318374373,1.23287432,95754.0,95731.0,8.52e-05]
[1736318374571,1.18756532,95754.0,95731.0,8.52e-05]
[1736318375000,1.07381832,95754.0,95731.0,8.52e-05]
[1736318375393,0.97381832,95754.0,95731.0,8.52e-05]
[1736318375603,0.70723032,95754.0,95731.0,8.52e-05]
[1736318375806,0.43727474,95754.0,95731.0,8.52e-05]
[1736318376011,0.20427474,95754.0,95731.0,8.52e-05]
[1736318376220,0.10427474,95754.0,95731.0,8.52e-05]
[1736318376426,0.10557546,95754.0,95731.0,8.52e-05]
[1736318376632,0.208846,95764.0,95731.0,8.52e-05]
[1736318376841,0.0824,95768.0,95734.0,0.20891]
[1736318376842,0.3661489,95757.0,95734.0,0.20891]
[1736318377050,0.20884,95767.0,95743.0,0.00112974]
[1736318377255,0.00130072,95766.0,95744.0,0.00104433]
[1736318377462,0.00015305,95772.0,95745.0,0.00104433]
[1736318377669,0.00130072,95768.0,95743.0,0.0011297]
[1736318377875,0.00130072,95768.0,95744.0,0.0010443]
[1736318378084,0.21013872,95768.0,95744.0,0.0010443]
[1736318378374,0.00130072,95768.0,95744.0,0.0010443]
[1736318378664,0.20884,95767.0,95743.0,0.0011297]
[1736318378857,0.04191218,95767.0,95745.0,0.0010443]
[1736318379074,0.04191218,95767.0,95743.0,8.54e-05]
[1736318379075,0.208831,95771.0,95743.0,0.00112976]
[1736318379283,0.00015305,95772.0,95744.0,0.00104422]
[1736318379492,0.00015305,95772.0,95756.0,0.208864]
[1736318380369,0.00015305,95772.0,95765.0,0.417685]
[1736318380593,0.00015305,95772.0,95767.0,0.20884]
[1736318380793,0.00015305,95772.0,95769.0,0.208835]
[1736318381007,0.00015305,95772.0,95771.0,0.208831]
[1736318381223,0.00015305,95772.0,95771.0,0.31310574]
[1736318382108,0.00015305,95772.0,95771.0,0.10427474]
[1736318382324,0.00015305,95772.0,95771.0,0.10531875]
[1736318382539,0.00015305,95772.0,95771.0,0.10427474]
[1736318382754,0.00015305,95772.0,95771.0,0.16584864]
[1736318382969,0.00015305,95772.0,95771.0,0.16573829]
[1736318383184,0.00015305,95772.0,95771.0,0.16573814]
[1736318383390,0.00015305,95772.0,95771.0,0.10616439]
[1736318383601,0.00015305,95772.0,95771.0,0.002]
[1736318383829,0.00015305,95772.0,95767.0,0.20884]
[1736318384049,0.00015305,95772.0,95753.0,0.30284412]
[1736318384050,0.00015305,95772.0,95771.0,0.006]
[1736318384260,0.00015305,95772.0,95771.0,0.002]
[1736318384684,0.00145377,95772.0,95771.0,0.006]
[1736318384890,0.00145377,95772.0,95771.0,0.002]